Cogmind - Beta 14 @@@ ROGUE MODE // 2024.11.14 @ 23:34:40 Player: gallo Result: Self-destructed Performance ------------- Evolutions (2) 1000 Regions Visited (4) 800 Robots Destroyed (25) 125 Value Destroyed (820) 820 Prototype IDs (0) 0 Alien Tech Used (0) 0 Bonus (0) 0 TOTAL SCORE: 2745 Bonus ------- None Cogmind --------- Core Integrity 356/550 Matter 227/450 Energy 164/250 System Corruption 0% Temperature Danger (417) Movement Core (300) Ox5 Location -8/Materials Parts ------- > --- POWER (2) -------- Ion Engine > --- PROPULSION (4) --- (None) > --- UTILITY (2) ------ Compact Matter Pod > --- WEAPON (3) ------- Heavy Particle Cannon Heavy Particle Cannon > --- INVENTORY (5) ---- Wheel Sensor Array Recoil Stabilizer Medium Laser Datajack Peak State ------------ > --- POWER ------------ Ion Engine Light Ion Engine > --- PROPULSION ------- Aluminum Leg Aluminum Leg > --- UTILITY ---------- Compact Matter Pod Recoil Stabilizer > --- WEAPON ----------- EM Shotgun Heavy Particle Cannon Heavy Particle Cannon > --- INVENTORY -------- Wheel Sensor Array Medium Laser Datajack Datajack [Rating: 18] Favorites ----------- Power Ion Engine Engine Ion Engine Propulsion Aluminum Leg Leg Aluminum Leg Utility Sensor Array Device Sensor Array Storage Small Storage Unit Weapon Medium Laser Energy Gun Medium Laser Energy Cannon Heavy Particle Cannon Ballistic Gun Assault Rifle Launcher Rocket Launcher Special Weapon Welding Torch Special Melee Weapon Datajack Build | -11 -10 -10 -9 -8 ------- Run | Yrd Mat Min Mat Mat Slots Evolved 4 | . . . 2 2 Power 1 | . . . 1 . Propulsion 2 | . . . . 2 Utility . | . . . . . Weapon 1 | . . . 1 . Parts Attached 30 | 6 6 5 11 2 Power 7 | 1 . 1 4 1 Engine 7 | 1 . 1 4 1 Core . | . . . . . Reactor . | . . . . . Propulsion 4 | 2 . 1 1 . Treads . | . . . . . Leg 4 | 2 . 1 1 . Wheel . | . . . . . Hover . | . . . . . Flight . | . . . . . Utility 5 | 1 1 2 . 1 Device 3 | . 1 1 . 1 Storage 2 | 1 . 1 . . Processor . | . . . . . Hackware . | . . . . . Protection . | . . . . . Artifact . | . . . . . Weapon 14 | 2 5 1 6 . Energy Gun 5 | 2 1 1 1 . Energy Cannon 3 | . . . 3 . Ballistic Gun 1 | . 1 . . . Ballistic Cannon . | . . . . . Launcher 2 | . 1 . 1 . Special Weapon 1 | . 1 . . . Impact Weapon . | . . . . . Slashing Weapon . | . . . . . Piercing Weapon . | . . . . . Special Melee Weapon 2 | . 1 . 1 . Unidentified Prototypes . | . . . . . Parts Lost 10 | . 1 3 2 4 Power 2 | . . . 1 1 Propulsion 3 | . . 1 . 2 Utility 1 | . . 1 . . Weapon 4 | . 1 1 1 1 Highest Loss Streak 3 | . 1 3 1 2 To Critical Strikes . | . . . . . Average Slot Usage (%) 91 | . 94 92 93 74 Engine 14 | . 14 14 16 15 Leg 24 | . 28 25 22 15 Device 13 | . 11 23 11 8 Storage 10 | . 14 1 11 9 Energy Gun 16 | . 18 26 8 9 Energy Cannon 5 | . . . 13 18 Ballistic Gun 1 | . 2 . . . Launcher 1 | . . . 4 . Special Melee Weapon 2 | . 2 . 6 . Peak Build Rating 18 | 6 8 10 16 18 Average Rating 9 | 4 7 7 13 16 On Entrance 8 | . 6 8 10 16 Naked Turns . | . . . . . Heaviest Build 25 | 14 17 12 25 25 Greatest Support 20 | 20 20 20 20 20 Greatest Overweight (x) 2 | . . 1 1 2 Average Overweight (x) . | . . . . 1 Largest Inventory Capacity 8 | 8 8 8 5 5 Average Capacity 6 | 7 8 5 5 5 Most Carried 8 | 3 8 7 5 5 Average Carried 4 | 1 5 5 4 4 Final Capacity 8 | 8 8 5 5 5 Final Carried 7 | 3 7 5 4 5 Class Distribution -------------------- 77% | Mutant 10% | Scavenger-Skirmisher 9% | Gunner Dominant Class ---------------- Mutant | -10/Materials Mutant | -10/Mines Mutant | -9/Materials Gunner | -8/Materials Resources | -11 -10 -10 -9 -8 ----------- Run | Yrd Mat Min Mat Mat Matter Collected 411 | 200 137 42 20 12 Remotely . | . . . . . Salvage Created 910 | . 296 50 305 259 Parts 52 | . 15 2 19 16 Haulers Intercepted . | . . . . . Recyclers Shooed 3 | . 2 . . 1 Parts Field Recycled . | . . . . . Retrieved Matter . | . . . . . Parts Self-Destructed . | . . . . . Prevented . | . . . . . Kills | -11 -10 -10 -9 -8 ------- Run | Yrd Mat Min Mat Mat Combat Hostiles Destroyed 18 | . 6 2 7 3 Guns 6 | . 3 2 . 1 Cannons 4 | . . . 2 2 AOE 8 | . 3 . 5 . Classes Destroyed 6 | . 3 . . 3 Recycler 4 | . 2 . 1 1 Operator 1 | . . . . 1 Watcher 2 | . 1 . 1 . Grunt 15 | . 6 2 7 . Brawler 1 | . . . . 1 Sentry 2 | . . . . 2 Best Kill Streak 5 | . 5 1 5 3 Combat Bots Only 5 | . 4 1 5 2 Max Kills in Single Turn 2 | . 1 1 2 2 Gunslinging . | . . . . . Exploded 1 | . 1 . 1 . Melee . | . . . . . Uniques/NPCs Destroyed . | . . . . . Combat | -11 -10 -10 -9 -8 -------- Run | Yrd Mat Min Mat Mat Hostile Shots Fired 110 | . 25 21 22 42 Missed 34 | . 9 2 10 13 Damage Taken 1322 | . 340 277 262 443 Core 283 | . 30 44 15 194 Absorbed by Shields . | . . . . . Core Remaining (%) 88 | 100 . 70 96 . Volleys Fired 65 | . 30 11 13 11 Largest 3 | . 2 2 3 3 Hottest 195 | . 100 115 153 195 Shots Fired 126 | . 55 15 28 28 Gun 76 | . 50 13 6 7 Cannon 34 | . . . 13 21 Launcher 13 | . 4 . 9 . Special 3 | . 1 2 . . Kinetic 14 | . 14 . . . Thermal 86 | . 37 15 13 21 Explosive 13 | . 4 . 9 . Electromagnetic 13 | . . . 6 7 Robot Hit Streak 8 | . 5 5 5 8 Robot Miss Streak 8 | . 8 2 2 6 Penetration Max . | . . . . . Secondary Targets . | . . . . . Shots Hit Robots 58 | . 19 11 15 13 Core Hits 43 | . 18 6 13 6 Critical Kills . | . . . . . Critical Parts Destroyed . | . . . . . Critical Strikes 2 | . 2 . . . Burn 2 | . 2 . . . Melee Attacks 4 | . 3 . 1 . Impact . | . . . . . Slashing . | . . . . . Piercing . | . . . . . Sneak Attacks 3 | . 2 . 1 . Combat Hostiles . | . . . . . Follow-up Attacks . | . . . . . Damage Inflicted 1744 | . 571 195 640 338 Guns 436 | . 209 150 39 38 Cannons 475 | . . . 175 300 Explosions 779 | . 353 . 426 . Melee . | . . . . . Ramming 52 | . 9 43 . . Kinetic 66 | . 66 . . . Thermal 803 | . 143 152 208 300 Explosive 746 | . 353 . 393 . Electromagnetic 77 | . . . 39 38 Impact . | . . . . . Slashing . | . . . . . Piercing . | . . . . . Highest Corruption . | . . . . . Average Corruption . | . . . . . Corruption Purged . | . . . . . Corruption Blocked . | . . . . . Overload Shots . | . . . . . Overflow Damage 43 | . . . 33 10 Projectiles 10 | . . . . 10 Explosions 33 | . . . 33 . Melee . | . . . . . Knockbacks . | . . . . . Impact . | . . . . . Kinetic . | . . . . . Secondary . | . . . . . Self-Inflicted Damage 203 | . 115 . 88 . Shots 3 | . 2 . 1 . Rammed . | . . . . . Targets Rammed 17 | . 3 14 . . Kicked 17 | . 3 14 . . Crushed . | . . . . . Highest Temperature 418 | . 234 262 265 418 Average Temperature 110 | . 69 110 115 176 Received Heat Transfer 606 | . 126 201 54 225 Effects 4 | . . . . 4 Shutdowns 1 | . . . . 1 Interference 2 | . . . . 2 Matter Decay 1 | . . . . 1 Siege Activations . | . . . . . Robots Corrupted . | . . . . . Combat Hostiles . | . . . . . Parts Fried . | . . . . . Impact Corruptions . | . . . . . Robots Melted . | . . . . . Combat Hostiles . | . . . . . Parts Melted 4 | . . 2 . 2 Heat Transferred 1703 | . 555 395 309 444 Parts Sabotaged . | . . . . . Parts Stolen . | . . . . . Parts Stripped . | . . . . . Power Chain Reactions 1 | . . . 1 . Alert | -11 -10 -10 -9 -8 ------- Run | Yrd Mat Min Mat Mat Peak Influence 379 | . 284 52 379 258 Initial 155 | . . 32 20 155 Average 89 | . 73 48 126 177 Maximum Alert Level 1 | . 1 . 1 1 Low Security (%) 88 | 100 90 100 81 73 Level 1 11 | . 9 . 18 26 Level 2 . | . . . . . Level 3 . | . . . . . Level 4 . | . . . . . Level 5 . | . . . . . High Security . | . . . . . Max Security . | . . . . . Squads Dispatched 8 | . 2 . 3 3 Investigation 3 | . 2 . 1 . Extermination . | . . . . . Reinforcement 4 | . . . 2 2 Assault . | . . . . . Garrison 1 | . . . . 1 Intercept . | . . . . . Searches Triggered . | . . . . . Construction Impeded . | . . . . . Haulers Reinforced . | . . . . . Active Scanning Responses . | . . . . . Cargo Convoy Interrupts . | . . . . . Stealth | -11 -10 -10 -9 -8 --------- Run | Yrd Mat Min Mat Mat Distress Signals 2 | . . . . 2 Communications Jammed . | . . . . . Distress Signals . | . . . . . Times Spotted 29 | . 10 2 10 7 Peak Tracking Total 7 | . 4 2 3 7 Tactical Retreats 1 | . 1 . . . Traps | -11 -10 -10 -9 -8 ------- Run | Yrd Mat Min Mat Mat Traps Triggered 2 | . 2 . . . Indirectly . | . . . . . Trap Hack Attempts . | . . . . . Triggered . | . . . . . Disarmed . | . . . . . Reprogrammed . | . . . . . Reused . | . . . . . Traps Extracted . | . . . . . Installed . | . . . . . Triggered . | . . . . . Machines | -11 -10 -10 -9 -8 ---------- Run | Yrd Mat Min Mat Mat Machines Disabled 6 | . 2 . 4 . Max in Single Turn 2 | . 2 . 1 . Machines Repaired . | . . . . . Machines Dismantled . | . . . . . Machines Sabotaged . | . . . . . Overloaded Fab Kills . | . . . . . Hacking | -11 -10 -10 -9 -8 --------- Run | Yrd Mat Min Mat Mat Machines Accessed 2 | . 1 . 1 . Terminals 1 | . . . 1 . Fabricators . | . . . . . Repair Stations . | . . . . . Recycling Units 1 | . 1 . . . Scanalyzers . | . . . . . Garrison Access . | . . . . . Total Hacks 6 | . 3 . 3 . Successful 4 | . 1 . 3 . Failed 2 | . 2 . . . Catastrophic . | . . . . . Database Lockouts . | . . . . . Manual . | . . . . . Terminals 3 | . . . 3 . Fabricators . | . . . . . Repair Stations . | . . . . . Recycling Units 3 | . 3 . . . Scanalyzers . | . . . . . Garrison Access . | . . . . . Terminal Hacks 3 | . . . 3 . Record 1 | . . . 1 . Hauler Manifests 1 | . . . 1 . Zone Layout 1 | . . . 1 . Fabricator Hacks . | . . . . . Repair Station Hacks . | . . . . . Recycling Unit Hacks 1 | . 1 . . . Report Inventory 1 | . 1 . . . Scanalyzer . | . . . . . Garrison Access Hacks . | . . . . . Unauthorized Hacks . | . . . . . Terminals . | . . . . . Fabricators . | . . . . . Repair Stations . | . . . . . Recycling Units . | . . . . . Scanalyzers . | . . . . . Garrison Access . | . . . . . Data Cores Recovered . | . . . . . Used . | . . . . . Hacking Detections 2 | . 1 . 1 . Full Trace Events 2 | . 1 . 1 . Feedback Events . | . . . . . Feedback Blocked . | . . . . . Robot Schematics Acquired . | . . . . . Robots Built . | . . . . . Authchips . | . . . . . Time . | . . . . . Total Robot Build Rating . | . . . . . Part Schematics Acquired . | . . . . . Parts Built . | . . . . . Authchips . | . . . . . Time . | . . . . . Total Part Build Rating . | . . . . . Parts Repaired . | . . . . . Time . | . . . . . Parts Recycled . | . . . . . Recycled Matter . | . . . . . Retrieved Matter . | . . . . . Retrieved Components . | . . . . . Parts Scanalyzed . | . . . . . Part Schematics Acquired . | . . . . . Parts Damaged . | . . . . . Bothacking | -11 -10 -10 -9 -8 ------------ Run | Yrd Mat Min Mat Mat Used RIF Installer . | . . . . . Robots Hacked 2 | . 2 . . . Non-combat 1 | . 1 . . . Combat 1 | . 1 . . . Robot Hacks Applied 2 | . 2 . . . parse_system 1 | . 1 . . . find_recycling 1 | . 1 . . . Relay Couplers Released . | . . . . . Fabnet Peak Effective % . | . . . . . Robots Rewired . | . . . . . Allies Hacked . | . . . . . Hacks Repelled . | . . . . . Allies | -11 -10 -10 -9 -8 -------- Run | Yrd Mat Min Mat Mat Total Allies . | . . . . . Largest Group . | . . . . . Highest-Rated Group . | . . . . . Highest-Rated Ally . | . . . . . Total Orders . | . . . . . Ally Attacks . | . . . . . Total Damage . | . . . . . Kills . | . . . . . Allies Corrupted . | . . . . . Allies Melted . | . . . . . Intel | -11 -10 -10 -9 -8 ------- Run | Yrd Mat Min Mat Mat Robot Analysis Total . | . . . . . Derelict Logs Recovered . | . . . . . Drone Launches . | . . . . . Drone Recoveries . | . . . . . Exploration | -11 -10 -10 -9 -8 ------------- Run | Yrd Mat Min Mat Mat Turns Passed 1276 | 98 462 240 311 165 Spaces Moved 753 | 77 292 151 173 60 Core 10 | 10 . . . . Treads . | . . . . . Legs 743 | 67 292 151 173 60 Wheels . | . . . . . Hover . | . . . . . Flight . | . . . . . Fastest Speed 50 | 50 120 120 120 190 Average Speed 132 | 110 120 122 145 204 Slowest Speed 260 | 120 120 190 190 260 Overloaded Moves . | . . . . . Propulsion Burnouts . | . . . . . Robots Hopped . | . . . . . Cave-ins Triggered . | . . . . . Exploration Rate (%) 20 | 4 40 29 23 7 Regions Visited 4 Branch Regions 1 Pre-discovered Areas . | . . . . . Known Exits Taken . | . . . . . Unknown Exits Taken 4 | 1 1 1 1 . Scrap Searched . | . . . . . Spaces Dug 16 | . 5 . 11 . Terrain Destroyed 164 | . 58 . 97 9 Melee . | . . . . . Projectile 15 | . . . 6 9 AOE 149 | . 58 . 91 . Terrain Rammed . | . . . . . Walls Destroyed . | . . . . . Machines Disabled . | . . . . . Actions | -11 -10 -10 -9 -8 --------- Run | Yrd Mat Min Mat Mat Total 901 | 86 344 184 206 81 Wait 11 | 1 6 3 . 1 Move 749 | 76 291 150 172 60 Hop . | . . . . . Pick Up 12 | 3 5 . 2 2 Fast Attach 15 | 6 1 3 4 1 Attach 4 | . 1 1 2 . Detach 2 | . . . 1 1 Swap 11 | . 4 1 5 1 Drop 11 | . . 1 6 4 Fire 65 | . 30 11 13 11 Melee 4 | . 3 . 1 . Ram . | . . . . . Kick 17 | . 3 14 . . Crush . | . . . . . Escape Stasis . | . . . . . Rewire . | . . . . . Trap . | . . . . . Miscellaneous . | . . . . . Route ------- -11/Scrapyard -10/Materials -10/Mines -9/Materials -8/Materials History --------- Turn | Location | Event 5 | -11/Scrapyard | Discovered new exit (range 16) 99 | -11/Scrapyard | Entered Materials 311 | -10/Materials | Build established: Mutant 557 | -10/Materials | Discovered new exit (range 5) 561 | -10/Materials | Entered Mines 614 | -10/Mines | Lost 3 parts (1n1u1w) 768 | -10/Mines | Discovered new exit (range 15) 801 | -10/Mines | Entered Materials 801 | -9/Materials | Evolved 2 slots: Power x1, Weapon x1 1048 | -9/Materials | Discovered new exit (range 16) 1112 | -9/Materials | Entered another Materials area 1112 | -8/Materials | Evolved 2 slots: Propulsion x2 1213 | -8/Materials | Garrison activated, responded to threat 1277 | -8/Materials | Self-destructed Last Messages --------------- 01231_ Acquired data core, dynamic key expired. 01233_ Y-45 Defender destroyed. 01233_ B-36 Bruiser destroyed. 01236_ Critical hit (Burn: +37). 01237_ Acquired 12 matter. 01253_ Critical hit (Burn: +37). 01259_ Dropped Datajack. 01259_ Acquired Shield Generator. 01260_ Dropped Recoil Stabilizer. 01261_ Dropped Shield Generator. 01261_ Acquired Recoil Stabilizer. 01268_ Heat Sink melted. 01268_ Y-45 Defender destroyed. 01272_ Overheating: System interference. 01272_ Hvy. Particle Cannon temporarily disabled. 01273_ Power failure, Ion Engine shutdown. 01273_ Aluminum Leg destroyed. 01274_ EM Shotgun destroyed. 01276_ Overheating: Matter decay (-56). Map ----- +----------------------------------------------------+ | | | | | | | | | | | | | | | | | | | | | | | | | ##########?????????#######???????????????????????? | | !! * # #???????? """ ""???????????????????????? | | !! # #?????????""" ""???????????????????????? | | ! # #?????????""" ""???????????????????????? | | # #?????????? ? ???????????????????????? | | # ########??? ? ???????????????????????? | | #+######+### #####+##;#??????????????????????? | | =;########???????????????? | | [!%=* *%= ????????? | | !!#;g;######???????????????? | | ########+### #### *%# g T #?????????????????? | | ????# ######"#?# =!;[ #?????????????????? | | ????# """ #?????##?# #%[""" #?????????????????? | | ????# """ #????????# #@ """ #?????????????????? | | ????# """ #???????"" # /""" #?????????????????? | | ????# #??????"R ; #?????????????????? | | ????# #??????""" ########?????????????????? | | ????########??????### #????????????????????????? | | ????????????????????# #????????????????????????? | | ????????????????????# "????????????????????????? | | ????????????????????# #????????????????????????? | | ????????????????????# #????????????????????????? | | ????????????????????# ?????????????????????????? | | ????????????????????? ?????????????????????????? | | ?????????????????????????????????????????????????? | | ?????????????????????????????????????????????????? | | ?????????????????????????????????????????????????? | | ?????????????????????????????????????????????????? | | ?????????????????????????????????????????????????? | | ?????????????????????????????????????????????????? | | ?????????????????????????????????????????????????? | | ?????????????????????????????????????????????????? | | ?????????????????????????????????????????????????? | | ?????????????????????????????????????????????????? | | ?????????????????????????????????????????????????? | | ?????????????????????????????????????????????????? | | ?????????????????????????????????????????????????? | | ?????????????????????????????????????????????????? | +----------------------------------------------------+ Best States ------------- Heat Dissipation 35 Energy Generation 15 Energy Capacity 400 Matter Stores 450 Matter Capacity 450 Sight Range 16 Robot Scan Range 14 Terrain Scan Density 10 Evasion (%) 55 Recoil Reduction 4 Item Schematics ----------------- None Robot Schematics ------------------ None Fabricated ------------ Nothing Alien Tech Used ----------------- None Achievements -------------- None Challenges ------------ None Game ------ Seed RagnarokGreatProtection Manual? 0 Play Time 00:13:01 Cumulative 5.7 hours Start 2024.11.14 @ 15:52:23 End 2024.11.14 @ 23:34:40 Sessions 3 Manual Loads 0 Difficulty Rogue Special Mode None Game No. 24 Rogue 24 Adventurer 0 Explorer 0 Win Type - Total 0 Types 0/0/0/0/0/0/0/0/0 Lore% 5 Gallery% 12 Achievement% 10 Wizard Run 0 Options --------- Layout 1 ASCII 0 Keyboard 1 Movement Numpad Keybinds 0 Fullscreen 1 Font 24/Smallcaps Map View 50x35 Zoom Use 0% Tactical HUD 1 Map Filters NONE Filters NONE Steam 1 RUN: da5b364a-c109-4930-831b-b8572314aedd